bitfinex-derivatives/quotes_BTCF0:USTF0_20241218
["timestamp","ask_amount","ask_price","bid_price","bid_amount"]
[1734551504549,0.36225455,103180.0,103150.0,0.3608]
[1734551504850,0.59188384,103180.0,103140.0,0.41037117]
[1734551505052,9.875e-05,103160.0,103140.0,0.40937117]
[1734551505242,0.00409875,103160.0,103140.0,0.63900046]
[1734551505641,0.00209875,103160.0,103140.0,0.63900046]
[1734551505851,0.00209875,103160.0,103150.0,0.63892729]
[1734551506049,0.00209875,103160.0,103150.0,0.409298]
[1734551506546,0.00209875,103160.0,103150.0,0.93892729]
[1734551506749,9.875e-05,103160.0,103150.0,0.93892729]
[1734551507547,9.875e-05,103160.0,103150.0,0.409298]
[1734551507742,9.875e-05,103160.0,103150.0,0.63892729]
[1734551508046,9.875e-05,103160.0,103150.0,0.93892729]
[1734551508553,0.00145455,103180.0,103160.0,0.048489]
[1734551508854,0.00145455,103180.0,103160.0,0.63891829]
[1734551509055,0.36225455,103180.0,103160.0,0.3608]
[1734551509248,0.00145455,103180.0,103150.0,0.416297]
[1734551509448,0.0015548,103180.0,103160.0,0.63892129]
[1734551509649,0.0015548,103180.0,103160.0,0.409292]
[1734551509853,0.0025548,103180.0,103160.0,0.409292]
[1734551510057,0.0035548,103180.0,103170.0,0.3608]
[1734551510247,0.0035548,103180.0,103170.0,0.048488]
[1734551510449,0.0035548,103180.0,103170.0,0.409288]
[1734551510751,0.36294425,103220.0,103170.0,0.93891729]
[1734551510951,0.00214425,103220.0,103190.0,0.63890429]
[1734551511153,0.36294425,103220.0,103190.0,0.63890429]
[1734551511550,0.36294425,103220.0,103200.0,0.27810229]
[1734551511747,0.00222209,103220.0,103210.0,0.0001214]
[1734551512059,0.94211638,103220.0,103210.0,0.0001214]
[1734551512257,0.94211638,103220.0,103180.0,0.048483]
[1734551512458,0.3608,103200.0,103180.0,0.048483]
[1734551512757,0.3608,103210.0,103190.0,0.048478]
[1734551513058,0.36402209,103220.0,103190.0,0.409278]
[1734551513255,0.36402209,103220.0,103210.0,0.00010613]
[1734551513655,0.94211638,103220.0,103210.0,0.00010613]
[1734551513852,0.048469,103210.0,103170.0,0.3608]
[1734551514057,0.3608,103200.0,103170.0,0.3608]
[1734551514458,0.3608,103200.0,103170.0,0.409288]
[1734551514656,0.3608,103200.0,103160.0,0.59180903]
[1734551514657,0.3608,103190.0,103160.0,0.59180903]
[1734551514960,0.3608,103180.0,103170.0,0.00011283]
[1734551516856,0.63891229,103180.0,103170.0,0.00011283]
[1734551517058,0.409283,103180.0,103170.0,0.00011283]
[1734551517361,0.3608,103180.0,103170.0,0.00211283]
[1734551517960,0.3608,103180.0,103170.0,0.00711283]
[1734551518159,0.3618,103180.0,103170.0,0.00511283]
[1734551518358,0.3618,103180.0,103170.0,0.00011283]
[1734551518557,0.3628,103180.0,103170.0,0.00011283]
[1734551518755,0.94091229,103180.0,103170.0,0.00011283]
[1734551519357,0.048494,103160.0,103140.0,0.048501]
[1734551519556,0.59042929,103150.0,103130.0,0.22956317]
[1734551519749,0.3608,103150.0,103130.0,0.22956317]
[1734551520063,0.3608,103150.0,103130.0,0.27807017]
[1734551520064,0.409299,103150.0,103130.0,0.27807017]
[1734551520258,0.409299,103150.0,103130.0,0.22956317]
[1734551520562,0.0001207,103140.0,103130.0,0.22956317]
[1734551520759,0.0486227,103140.0,103130.0,9.314e-05]
[1734551521065,0.4094227,103140.0,103130.0,9.314e-05]
[1734551521359,0.4094227,103140.0,103130.0,0.00109314]
[1734551521558,0.93905199,103140.0,103130.0,0.00109314]
[1734551521769,0.93905199,103140.0,103130.0,0.00509314]
[1734551522765,0.93905199,103140.0,103130.0,0.00709314]
[1734551523357,0.048516,103110.0,103100.0,0.32956317]
[1734551523566,0.63894529,103110.0,103100.0,0.1]
[1734551523759,0.93894529,103110.0,103100.0,0.11410185]
[1734551523954,0.3608,103110.0,103100.0,0.11410185]
[1734551524165,0.3608,103110.0,103100.0,0.16262185]
[1734551524369,0.3608,103120.0,103110.0,0.048516]
[1734551524560,0.63893729,103130.0,103110.0,0.048516]
[1734551524867,0.63894329,103120.0,103100.0,0.15062388]
[1734551525063,0.409308,103130.0,103100.0,0.15562388]
[1734551525265,0.60164862,103140.0,103120.0,0.048512]
[1734551525456,0.3608,103130.0,103120.0,0.048512]
[1734551525656,0.001,103130.0,103120.0,0.048512]
[1734551525965,0.00157591,103140.0,103130.0,0.048507]
[1734551526270,0.55933127,103160.0,103140.0,0.048502]
[1734551526568,0.55933127,103160.0,103140.0,0.409302]
[1734551526769,0.3608,103160.0,103140.0,0.409302]
[1734551527259,9.007e-05,103150.0,103140.0,0.409302]
[1734551527559,9.007e-05,103150.0,103140.0,0.3608]
[1734551527765,9.007e-05,103150.0,103140.0,0.63893129]
[1734551527966,9.007e-05,103150.0,103140.0,0.3608]
[1734551528166,9.007e-05,103150.0,103140.0,0.409302]
[1734551528368,9.007e-05,103150.0,103140.0,0.63886517]
[1734551528552,0.00209007,103150.0,103140.0,0.63886517]
[1734551529175,0.00309007,103150.0,103140.0,0.63886517]
[1734551529358,0.00309007,103150.0,103140.0,0.93250142]
[1734551529662,0.00309007,103150.0,103140.0,0.52319942]
[1734551530363,0.94201636,103150.0,103140.0,0.52319942]
[1734551530567,0.94201636,103150.0,103130.0,0.52450581]
[1734551530568,0.048502,103140.0,103130.0,0.52450581]
[1734551530760,0.63893129,103140.0,103130.0,0.48556015]
[1734551530961,0.93893129,103140.0,103120.0,0.34434476]
[1734551531266,0.63893629,103130.0,103120.0,0.34434476]
[1734551531457,0.63893629,103130.0,103120.0,0.35839681]
[1734551531655,0.93893629,103130.0,103120.0,0.34434476]
[1734551531861,0.409307,103130.0,103120.0,0.34434476]
[1734551532068,0.409307,103130.0,103110.0,0.048515]
[1734551532261,0.048507,103130.0,103110.0,0.409315]
[1734551532567,0.048507,103130.0,103110.0,0.048515]
[1734551532568,0.409307,103130.0,103110.0,0.048515]
[1734551532962,0.3608,103120.0,103100.0,0.50942288]
[1734551533273,0.409314,103120.0,103100.0,0.46090388]
[1734551533567,0.409314,103120.0,103100.0,0.14862388]
[1734551534069,0.048514,103120.0,103100.0,0.14862388]
[1734551534254,0.409314,103120.0,103100.0,0.51442388]
[1734551534455,0.709314,103120.0,103100.0,0.10510388]
[1734551534660,0.409316,103110.0,103100.0,0.10510388]
[1734551534972,0.409316,103110.0,103100.0,0.11614175]
[1734551535358,0.048516,103110.0,103100.0,0.11614175]
[1734551535566,0.048516,103110.0,103100.0,0.10110388]
[1734551535767,0.59042929,103130.0,103100.0,0.46190388]
[1734551535982,0.048513,103120.0,103110.0,0.3608]
[1734551536159,0.048508,103130.0,103110.0,0.3608]
[1734551536463,0.048516,103110.0,103100.0,0.10110388]
[1734551536658,0.048516,103110.0,103100.0,0.10010388]
[1734551536863,0.048516,103110.0,103100.0,0.10410388]
[1734551537063,0.048513,103120.0,103100.0,0.10410388]
[1734551537264,0.048516,103110.0,103100.0,0.10010388]
[1734551537761,0.048512,103120.0,103100.0,0.10010388]
[1734551537962,0.049507,103130.0,103100.0,0.51342388]
[1734551538359,0.048516,103110.0,103100.0,0.10410388]
[1734551538560,0.59042929,103130.0,103100.0,0.46490388]
[1734551538767,0.048512,103120.0,103110.0,0.3608]
[1734551538959,0.409307,103130.0,103100.0,0.51442388]
[1734551539164,0.048511,103120.0,103100.0,0.51442388]
[1734551539572,0.048516,103110.0,103100.0,0.10410388]
[1734551539870,0.001,103130.0,103100.0,0.46190388]
[1734551540179,0.049508,103130.0,103100.0,0.51042388]
[1734551540471,0.049508,103130.0,103100.0,0.74005317]
[1734551540777,0.001,103130.0,103110.0,0.83854429]
[1734551540973,0.001,103130.0,103120.0,0.3608]
[1734551541362,0.42039408,103140.0,103120.0,0.3608]
[1734551541363,0.05959408,103140.0,103120.0,0.3608]
[1734551541771,0.04995832,103140.0,103120.0,0.3608]
[1734551542174,0.41075832,103140.0,103120.0,0.3608]
[1734551542477,0.001,103130.0,103120.0,0.63893929]
[1734551542668,9.007e-05,103150.0,103140.0,0.048501]
[1734551542868,9.007e-05,103150.0,103140.0,0.99973029]
[1734551543174,0.11360442,103170.0,103150.0,0.048496]
[1734551543365,0.11360442,103170.0,103150.0,0.409296]
[1734551543877,0.11360442,103170.0,103150.0,0.5691]
[1734551544267,8.48e-05,103160.0,103150.0,0.5691]
[1734551544571,0.06037577,103180.0,103150.0,0.5691]
[1734551544764,0.06037577,103180.0,103160.0,0.3608]
[1734551544969,0.409289,103170.0,103150.0,0.2083]
[1734551545175,0.27812529,103160.0,103130.0,0.59170501]
[1734551545477,0.04861546,103140.0,103130.0,0.23090501]
[1734551545776,0.00011246,103140.0,103130.0,0.3608]
[1734551546479,0.00011246,103140.0,103130.0,0.004]
[1734551546876,0.00011246,103140.0,103130.0,0.3648]
[1734551547171,0.001,103160.0,103130.0,0.59442929]
[1734551547375,0.001,103160.0,103140.0,0.63892829]
[1734551547779,0.001,103160.0,103150.0,0.3608]
[1734551547976,0.50524947,103180.0,103160.0,0.048493]
[1734551548164,0.64868027,103170.0,103160.0,0.00011034]
[1734551548668,0.93899397,103170.0,103130.0,0.2352006]
[1734551548874,0.048502,103140.0,103130.0,0.2352006]
[1734551549072,0.63893029,103150.0,103130.0,0.2312006]
[1734551549377,0.409301,103150.0,103130.0,0.2312006]
[1734551549674,0.048501,103150.0,103130.0,0.5920006]
[1734551549975,0.048494,103160.0,103130.0,0.87026112]
[1734551550277,0.42104512,103170.0,103140.0,0.409302]
[1734551550578,0.06024512,103170.0,103140.0,0.409302]
[1734551550779,0.002,103150.0,103140.0,0.409302]
[1734551550968,0.002,103150.0,103140.0,0.048502]
[1734551551470,0.002,103150.0,103130.0,0.40942923]
[1734551551671,0.002,103150.0,103130.0,0.64062883]
[1734551551877,0.003,103150.0,103140.0,0.63893129]
[1734551552069,0.41904312,103170.0,103140.0,0.27813029]
[1734551552265,0.42104312,103170.0,103140.0,0.27813029]
[1734551552475,0.42104312,103170.0,103140.0,0.63893029]
[1734551552676,0.001,103150.0,103140.0,0.63893029]
[1734551552876,0.003,103150.0,103140.0,0.63893029]
[1734551553273,0.003,103150.0,103140.0,0.87013089]
[1734551553473,0.001,103150.0,103140.0,0.87013089]
[1734551553977,0.001,103150.0,103140.0,0.87113089]
[1734551554568,0.00107368,103170.0,103150.0,0.048495]
[1734551554773,0.00107368,103170.0,103160.0,0.409293]
[1734551554974,0.00107368,103170.0,103160.0,0.3608]
[1734551555278,0.00107368,103170.0,103160.0,0.409293]
[1734551555279,7.368e-05,103170.0,103160.0,0.409293]
[1734551555675,7.368e-05,103170.0,103160.0,0.63892229]
[1734551555980,7.368e-05,103170.0,103160.0,1.02392229]
[1734551556279,0.00107368,103170.0,103160.0,1.02392229]
[1734551556471,0.00107368,103170.0,103160.0,0.5529]
[1734551556676,0.00107368,103170.0,103150.0,0.7801006]
[1734551556873,0.04956168,103170.0,103150.0,0.7801006]
[1734551557071,7.368e-05,103170.0,103150.0,0.7801006]
[1734551557279,0.00107368,103170.0,103160.0,0.2312006]
[1734551557573,0.00207368,103170.0,103160.0,0.2312006]
[1734551558077,0.36187368,103170.0,103160.0,0.2312006]
[1734551558272,0.36187368,103170.0,103150.0,0.4193006]
[1734551558273,0.59250297,103170.0,103150.0,0.4193006]
[1734551558465,0.63892229,103160.0,103150.0,0.2312006]
[1734551559271,0.409293,103160.0,103150.0,0.2312006]
[1734551559973,0.409293,103160.0,103130.0,0.04863123]
[1734551560174,0.3608,103150.0,103130.0,0.04863123]
[1734551560473,0.27813129,103140.0,103130.0,0.00012523]
[1734551560668,0.63893129,103140.0,103130.0,0.00012523]
[1734551561275,0.409302,103140.0,103130.0,0.00012523]
[1734551561581,0.410302,103140.0,103130.0,0.00012523]
[1734551562175,0.3618,103140.0,103130.0,0.04863223]
[1734551562482,0.001,103140.0,103130.0,0.04863223]
[1734551562782,0.409299,103150.0,103130.0,0.04863223]
[1734551562986,0.3608,103160.0,103140.0,0.048502]
[1734551563188,0.3608,103160.0,103140.0,0.048501]
[1734551563678,0.048502,103140.0,103130.0,0.00012523]
[1734551563882,0.048502,103140.0,103130.0,0.23132583]
[1734551563883,0.63893129,103140.0,103130.0,0.23132583]
[1734551564373,0.409302,103140.0,103130.0,0.23132583]
[1734551564772,0.63893129,103140.0,103130.0,0.23132583]
[1734551565185,0.63993129,103140.0,103130.0,0.23132583]
[1734551565480,0.63993129,103140.0,103130.0,0.00012523]
[1734551565678,0.410302,103140.0,103130.0,0.00012523]
[1734551566270,0.411302,103140.0,103130.0,0.00012523]
[1734551566680,0.64093129,103140.0,103130.0,0.00012523]
[1734551567778,0.94093129,103140.0,103130.0,0.00012523]
[1734551568378,0.048511,103120.0,103110.0,0.2312006]
[1734551568576,0.99974029,103120.0,103110.0,0.2312006]
[1734551568771,1.29974029,103120.0,103110.0,0.2312006]
[1734551569071,0.3628,103140.0,103110.0,0.048513]
[1734551569271,0.04862169,103130.0,103110.0,0.04859409]
[1734551569777,0.00011569,103130.0,103120.0,0.04851]
[1734551570079,0.00011569,103130.0,103120.0,0.27906856]
[1734551570289,0.00011569,103130.0,103120.0,0.60271]
[1734551570583,0.50234476,103150.0,103130.0,0.048504]
[1734551570768,0.14154476,103150.0,103140.0,0.3608]
[1734551571579,0.00011193,103150.0,103140.0,0.409301]
[1734551571979,0.55228447,103180.0,103150.0,0.048497]
[1734551572285,0.55228447,103180.0,103160.0,0.3608]
[1734551572781,0.41073971,103180.0,103160.0,0.3608]
[1734551572983,0.00010332,103170.0,103160.0,0.3608]
[1734551574382,0.00110332,103170.0,103160.0,0.770093]
[1734551574573,0.00245471,103180.0,103160.0,0.770093]
[1734551574574,0.00245471,103180.0,103160.0,0.957393]
[1734551574778,0.00245471,103180.0,103170.0,0.3608]
[1734551575377,0.00245471,103180.0,103160.0,0.4049422]
[1734551575378,0.592884,103180.0,103160.0,0.4049422]
[1734551575577,0.04960297,103170.0,103160.0,0.4049422]
[1734551576286,0.04860297,103170.0,103160.0,0.4049422]
[1734551576791,0.04960297,103170.0,103160.0,0.17353382]
[1734551576989,0.41040297,103170.0,103160.0,0.17353382]
[1734551577581,0.41140297,103170.0,103160.0,0.17353382]
[1734551577778,0.05060297,103170.0,103160.0,0.17353382]
[1734551578087,0.00211497,103170.0,103160.0,0.22202682]
[1734551578590,0.00145471,103180.0,103160.0,0.58282682]
[1734551579085,0.00145471,103180.0,103170.0,0.3608]
[1734551579480,0.419277,103200.0,103170.0,0.40938691]
[1734551579676,0.3708,103200.0,103180.0,0.409283]
[1734551579889,0.3708,103200.0,103180.0,0.597183]
[1734551580084,0.01,103200.0,103180.0,0.597183]
[1734551580286,0.0005,103190.0,103180.0,0.597183]
[1734551580490,0.0101216,103200.0,103180.0,0.95798]
[1734551580689,0.0101216,103200.0,103190.0,0.3608]
[1734551581082,0.0101216,103200.0,103190.0,0.409279]
[1734551581284,0.048466,103220.0,103190.0,0.409279]
[1734551581483,0.048466,103220.0,103200.0,0.3608]
[1734551581878,0.64098434,103230.0,103200.0,0.3608]
[1734551582083,0.64098434,103230.0,103190.0,0.72963382]
[1734551582084,0.22962929,103210.0,103190.0,0.72963382]
[1734551582292,0.27867749,103200.0,103190.0,0.17353382]
[1734551582484,0.64047749,103200.0,103190.0,0.17353382]
[1734551583288,0.63997749,103200.0,103190.0,0.17353382]
[1734551583789,0.0020742,103200.0,103190.0,0.59042929]
[1734551583984,0.14154476,103220.0,103210.0,0.04847]
[1734551584182,0.14154476,103220.0,103210.0,0.63889929]
[1734551584390,0.17194776,103230.0,103210.0,0.63889529]
[1734551584586,0.17194776,103230.0,103220.0,0.048465]
[1734551584781,0.1737557,103240.0,103220.0,0.63889429]
[1734551584984,0.01008271,103250.0,103240.0,0.048455]
[1734551585291,0.01008271,103250.0,103240.0,0.63888429]
[1734551585887,0.01008271,103250.0,103240.0,0.5619]
[1734551586090,0.01108271,103250.0,103240.0,0.22962929]
[1734551586598,0.01108271,103250.0,103230.0,0.82389092]
[1734551586896,0.01108271,103250.0,103230.0,0.58816574]
[1734551587093,0.42033671,103250.0,103230.0,0.35853645]
[1734551587286,0.01108271,103250.0,103240.0,0.22962929]
[1734551587482,0.01108271,103250.0,103230.0,0.40699545]
[1734551587790,0.01108271,103250.0,103230.0,0.76779545]
[1734551588089,0.01108271,103250.0,103230.0,0.59426163]
[1734551588289,0.37188271,103250.0,103230.0,0.54580263]
[1734551588505,0.42033471,103250.0,103230.0,0.54580263]
[1734551588691,0.37188271,103250.0,103230.0,0.82389092]
[1734551588999,0.01108271,103250.0,103240.0,0.27808429]
[1734551589201,0.01108271,103250.0,103240.0,0.63888429]
[1734551589491,0.3608,103280.0,103260.0,0.048445]
[1734551589701,0.3608,103290.0,103270.0,0.63886929]
[1734551589883,0.3608,103290.0,103280.0,0.22962929]
[1734551590085,0.1,103300.0,103280.0,0.63886229]
[1734551590285,0.1,103300.0,103290.0,0.27806129]
[1734551590487,0.10008413,103300.0,103280.0,0.63886429]
[1734551590687,0.14851213,103300.0,103270.0,1.21517029]
[1734551590883,0.46088413,103300.0,103270.0,0.9371]
[1734551591083,0.45767,103290.0,103250.0,0.82877929]
[1734551591292,0.3608,103270.0,103250.0,0.9437]
[1734551591493,0.409242,103270.0,103250.0,0.393]
[1734551591689,0.409242,103270.0,103240.0,0.41070797]
[1734551591993,0.409242,103270.0,103240.0,0.36225297]
[1734551592201,0.409246,103260.0,103240.0,0.36225297]
[1734551592401,0.3608,103270.0,103240.0,0.59188226]
[1734551592697,0.3608,103280.0,103260.0,0.27807529]
[1734551592894,0.3608,103280.0,103270.0,0.22962929]
[1734551593100,0.46088413,103300.0,103270.0,0.63886629]
[1734551593288,0.46088413,103300.0,103280.0,0.27806229]
[1734551593487,0.46088413,103300.0,103290.0,0.22962929]
[1734551593685,0.46088413,103300.0,103280.0,0.27806229]
[1734551594292,0.10008413,103300.0,103290.0,0.27806129]
[1734551594493,0.10008413,103300.0,103290.0,0.048432]
[1734551594696,0.10008413,103300.0,103290.0,0.27806129]
[1734551594896,0.10008413,103300.0,103290.0,0.048432]
[1734551595096,0.10008413,103300.0,103290.0,0.409232]
[1734551595401,0.10008413,103300.0,103270.0,0.99234]
[1734551595402,0.51031213,103300.0,103270.0,0.99234]
[1734551595702,0.409233,103290.0,103260.0,0.048445]
[1734551595898,0.3608,103290.0,103270.0,0.048441]
[1734551596099,0.3608,103290.0,103260.0,0.3608]
[1734551596297,0.409238,103280.0,103250.0,0.63725925]
[1734551596495,0.3608,103260.0,103250.0,0.17198196]
[1734551596690,0.63887529,103260.0,103250.0,0.17198196]
[1734551596889,1.12277529,103260.0,103250.0,0.17198196]
[1734551597096,0.048451,103250.0,103240.0,0.5159459]
[1734551597293,0.63938029,103250.0,103240.0,0.5159459]
[1734551597596,0.048456,103240.0,103230.0,0.00010263]
[1734551597799,0.409256,103240.0,103230.0,0.00010263]
[1734551599193,0.410256,103240.0,103230.0,0.00010263]
[1734551599390,0.93988529,103240.0,103230.0,0.00010263]
[1734551599591,0.048464,103220.0,103200.0,0.00145323]
[1734551599803,0.63889329,103220.0,103200.0,0.04992523]
[1734551599999,0.3608,103210.0,103200.0,0.04992523]
[1734551600206,0.63889329,103220.0,103200.0,0.04992523]
[1734551600601,0.3608,103210.0,103200.0,0.05000616]
[1734551601204,0.40927,103210.0,103200.0,0.00153416]
[1734551601708,0.3608,103210.0,103200.0,0.00153416]
[1734551602102,0.3618,103210.0,103200.0,0.00153416]
[1734551602305,0.001,103210.0,103200.0,0.41080816]
[1734551602902,0.001,103210.0,103200.0,0.94043745]
[1734551603099,0.00145379,103240.0,103220.0,0.048465]
[1734551603300,0.00145379,103240.0,103220.0,0.048462]
[1734551603603,0.00145379,103240.0,103220.0,0.409262]
[1734551603805,0.00145379,103240.0,103230.0,0.25586]
[1734551604005,0.00145379,103240.0,103230.0,0.61666]
[1734551604495,0.00245379,103240.0,103230.0,0.61666]
[1734551604812,0.36325379,103240.0,103230.0,0.2074]
[1734551604998,0.64133908,103240.0,103210.0,0.3608]
[1734551605303,0.3608,103230.0,103210.0,0.3608]
[1734551605500,0.3608,103230.0,103220.0,0.048465]
[1734551605710,0.3608,103230.0,103210.0,0.59042929]
[1734551605907,0.3608,103230.0,103210.0,0.409268]
[1734551606207,0.41071079,103240.0,103210.0,0.617468]
[1734551606597,0.04991079,103240.0,103210.0,0.617468]
[1734551606805,0.04991079,103240.0,103210.0,0.665934]
[1734551607107,0.00145379,103240.0,103230.0,0.40926]
[1734551607500,0.00145379,103240.0,103230.0,0.63888929]
[1734551607698,0.40936516,103260.0,103230.0,0.409259]
[1734551607906,0.40936516,103260.0,103240.0,0.3608]
[1734551608091,0.36091816,103260.0,103240.0,0.2023]
[1734551608506,0.36091816,103260.0,103210.0,0.617469]
[1734551608507,0.048456,103240.0,103210.0,0.617469]
[1734551608705,0.409263,103230.0,103210.0,0.569]
[1734551608902,0.409263,103230.0,103210.0,0.2082]
[1734551609101,0.409261,103230.0,103210.0,0.2082]
[1734551609703,0.3608,103220.0,103210.0,0.25667]
[1734551609899,0.409252,103250.0,103210.0,1.14709929]
[1734551610103,0.3608,103250.0,103230.0,0.63888829]
[1734551610411,0.47565905,103260.0,103240.0,0.5631]
[1734551610710,0.11485905,103260.0,103250.0,0.048451]
[1734551610913,0.11385905,103260.0,103240.0,0.611553]
[1734551611211,0.001,103250.0,103240.0,0.611553]
[1734551612111,0.00011816,103260.0,103240.0,0.611553]
[1734551612304,0.00111816,103260.0,103250.0,0.409251]
[1734551612607,0.00111816,103260.0,103250.0,0.616251]
[1734551613312,0.00111816,103260.0,103250.0,0.84588029]
[1734551613613,0.00011816,103260.0,103250.0,0.84588029]
[1734551614208,0.00111816,103260.0,103250.0,0.255451]
[1734551614706,0.00111816,103260.0,103250.0,0.616251]
[1734551616005,0.00111816,103260.0,103250.0,0.84588029]
[1734551616314,0.00111816,103260.0,103250.0,0.616251]
[1734551617215,0.00145345,103280.0,103270.0,0.048441]
[1734551617511,0.0005,103290.0,103280.0,0.048437]
[1734551617512,0.11424089,103290.0,103280.0,0.048437]
[1734551617711,0.11424089,103290.0,103280.0,0.63886629]
[1734551618021,0.24300333,103300.0,103290.0,0.048432]
[1734551618205,0.24300333,103300.0,103290.0,0.63886129]
[1734551618406,0.24300333,103300.0,103290.0,0.84746129]
[1734551618814,0.1,103300.0,103290.0,0.617832]
[1734551619114,0.1,103300.0,103290.0,0.257032]
[1734551619507,0.1,103300.0,103290.0,0.617832]
[1734551619705,8.606e-05,103310.0,103290.0,1.14746129]
[1734551619915,0.01,103340.0,103310.0,0.04842]
[1734551620115,0.3708,103340.0,103310.0,0.63884929]
[1734551620312,0.3708,103340.0,103320.0,0.3608]
[1734551620521,0.3708,103340.0,103320.0,0.409217]
[1734551621017,0.3708,103340.0,103330.0,8.023e-05]
[1734551621419,0.37090803,103340.0,103330.0,8.023e-05]
[1734551621618,0.01010803,103340.0,103330.0,0.36088023]
[1734551621821,0.01010803,103340.0,103330.0,0.63892352]
[1734551622013,0.01010803,103340.0,103330.0,0.84942352]
[1734551622716,0.00145213,103360.0,103350.0,0.048404]
[1734551622920,0.00145213,103360.0,103350.0,0.63883329]
[1734551623522,0.00145213,103360.0,103350.0,0.99963329]
[1734551624517,0.00145213,103360.0,103340.0,0.63883729]
[1734551624711,0.00145213,103360.0,103330.0,1.00150952]
[1734551624909,0.00145213,103360.0,103330.0,0.21058023]
[1734551624910,0.3608,103350.0,103330.0,0.21058023]
[1734551625111,0.409205,103350.0,103330.0,8.023e-05]
[1734551625309,0.3608,103340.0,103330.0,8.023e-05]
[1734551625516,0.409209,103340.0,103330.0,8.023e-05]
[1734551625720,0.709209,103340.0,103330.0,8.023e-05]
[1734551626117,0.3608,103340.0,103330.0,8.023e-05]
[1734551626307,0.409208,103350.0,103330.0,8.023e-05]
[1734551626717,0.409209,103340.0,103330.0,8.023e-05]
[1734551627221,0.709209,103340.0,103330.0,8.023e-05]
[1734551627522,0.409209,103340.0,103330.0,1e-08]
[1734551627719,0.3608,103340.0,103330.0,1e-08]
[1734551628021,0.709209,103340.0,103330.0,1e-08]
[1734551628325,0.3608751,103340.0,103330.0,1e-08]
[1734551628824,0.4092841,103340.0,103330.0,1e-08]
[1734551629019,0.3608751,103340.0,103330.0,1e-08]
[1734551629318,0.3613751,103340.0,103330.0,0.04841401]
[1734551629526,0.3613751,103340.0,103330.0,1e-08]
[1734551629819,0.7097841,103340.0,103330.0,1e-08]
[1734551630215,0.3613751,103340.0,103330.0,1e-08]
[1734551630419,0.3613751,103340.0,103330.0,0.04841401]
[1734551630624,0.0005751,103340.0,103330.0,0.04841401]
[1734551631132,0.3613751,103340.0,103330.0,0.04841401]
[1734551631316,0.3613751,103340.0,103330.0,1e-08]
[1734551631627,0.4097841,103340.0,103330.0,1e-08]
[1734551631817,0.3613751,103340.0,103330.0,1e-08]
[1734551632415,0.3613751,103340.0,103330.0,0.04841401]
[1734551633022,0.3613751,103340.0,103330.0,0.2780433]
[1734551633419,0.3613751,103340.0,103330.0,0.04841401]
[1734551633818,0.0005751,103340.0,103330.0,0.2780433]
[1734551634726,0.0005751,103340.0,103330.0,0.04841401]
[1734551635129,0.0005751,103340.0,103330.0,0.40921401]
[1734551635322,0.0005751,103340.0,103330.0,0.6388433]
[1734551635919,0.00145213,103360.0,103350.0,0.048404]
[1734551636124,0.00145213,103360.0,103350.0,0.63883329]
[1734551636426,0.3608,103370.0,103360.0,0.0484]
[1734551636629,0.3608,103380.0,103360.0,0.27802929]
[1734551636830,0.3608,103380.0,103360.0,0.63882929]
[1734551637023,9.299e-05,103370.0,103360.0,0.4092]
[1734551638825,9.299e-05,103370.0,103360.0,0.63882929]
[1734551639831,9.299e-05,103370.0,103360.0,0.4092]
[1734551640022,9.299e-05,103370.0,103360.0,0.41902804]
[1734551640222,0.0005,103360.0,103350.0,0.613703]
[1734551640417,0.3613,103360.0,103340.0,0.5635]
[1734551640735,0.409205,103350.0,103330.0,1e-08]
[1734551641043,0.3608,103350.0,103340.0,0.22962929]
[1734551641335,0.409208,103350.0,103330.0,1e-08]
[1734551641524,0.3608,103340.0,103330.0,1e-08]
[1734551641925,0.409205,103350.0,103330.0,1e-08]
[1734551642336,0.3608,103350.0,103330.0,0.2296293]
[1734551642629,0.3608,103360.0,103340.0,0.048409]
[1734551642927,0.40978899,103370.0,103340.0,0.63883829]
[1734551643137,0.3608,103360.0,103340.0,0.048409]
[1734551643428,0.3608,103360.0,103330.0,0.5904293]
[1734551643429,0.3608,103350.0,103330.0,0.36080001]
[1734551643628,0.3608,103350.0,103330.0,1e-08]
[1734551643820,0.3608,103350.0,103330.0,0.2780443]
[1734551644025,0.3608,103360.0,103330.0,0.6388403]
[1734551644231,0.3608,103360.0,103330.0,0.04841101]
[1734551644431,0.3608,103350.0,103330.0,0.04841101]
[1734551644631,0.3608,103350.0,103340.0,0.04841]
[1734551644931,0.3608,103350.0,103330.0,0.04841401]
[1734551645531,0.3608,103350.0,103340.0,0.04841]
[1734551645733,0.409201,103360.0,103330.0,0.04841301]
[1734551646131,0.3608,103350.0,103330.0,0.04841301]
[1734551646533,9.299e-05,103370.0,103340.0,0.59042929]
[1734551646727,9.299e-05,103370.0,103360.0,0.63883029]
[1734551647332,9.299e-05,103370.0,103360.0,0.84323029]
[1734551648339,9.299e-05,103370.0,103360.0,1.14323029]
[1734551648727,9.299e-05,103370.0,103360.0,0.84323029]
[1734551649527,9.299e-05,103370.0,103360.0,1.14323029]
[1734551649728,9.299e-05,103370.0,103360.0,0.84323029]
[1734551650133,9.299e-05,103370.0,103360.0,0.613601]
[1734551651035,9.299e-05,103370.0,103360.0,1.14323029]
[1734551651231,0.14350333,103390.0,103380.0,0.048391]
[1734551651537,0.24445494,103400.0,103380.0,0.63882029]
[1734551651739,0.24445494,103400.0,103390.0,0.409187]
[1734551652033,0.60525494,103400.0,103380.0,0.048391]
[1734551652240,0.65363794,103400.0,103390.0,8.129e-05]
[1734551652543,0.048387,103390.0,103380.0,0.002]
[1734551652738,0.409187,103390.0,103380.0,0.002]
[1734551653034,0.3608,103390.0,103360.0,1.08240575]
[1734551653240,0.3608,103380.0,103360.0,0.90117646]
[1734551653430,0.36092129,103370.0,103360.0,0.49197646]
[1734551653629,0.36092129,103370.0,103360.0,0.50164144]
[1734551653841,0.36092129,103370.0,103360.0,0.28768289]
[1734551654341,0.63894658,103370.0,103360.0,0.00010643]
[1734551654535,0.40931729,103370.0,103360.0,0.00010643]
[1734551655133,0.048402,103360.0,103340.0,0.33453134]
[1734551655333,0.3608,103350.0,103340.0,0.33453134]
[1734551655636,0.14312462,103370.0,103360.0,0.048401]
[1734551655833,0.50392462,103370.0,103360.0,0.048401]
[1734551656029,0.55232162,103370.0,103350.0,0.048405]
[1734551656229,0.3608,103360.0,103350.0,0.04849576]
[1734551657241,0.409201,103360.0,103350.0,9.076e-05]
[1734551657431,0.63883029,103360.0,103350.0,9.076e-05]
[1734551657739,0.409201,103360.0,103350.0,9.076e-05]
[1734551658237,0.3608,103360.0,103350.0,0.04849576]